[Event "Ceske Budejovice Open-A 2019"]
[Site "Ceske Budejovice"]
[Date "2019.07.06"]
[Round "8.5"]
[White "Karasek, Lukas"]
[Black "Ivanov, Mikhail M"]
[Result "1/2-1/2"]
[ECO "C44"]
[WhiteElo "2278"]
[BlackElo "2359"]
[Annotator "NA"]
[PlyCount "97"]
[EventDate "2019.07.02"]
[EventCountry "CZE"]
[SourceTitle "playchess.com"]
[Source "ChessBase"]
[SourceQuality "1"]
[TimeControl "5400+30"]

1. e4 {[%emt 0:00:39]} e5 {[%emt 0:11:20]} 2. Nf3 {[%emt 0:01:04]} Nc6 {[%emt 0:01:21]} 3. d4 exd4 {[%emt 0:00:29]} 4. Nxd4 {[%emt 0:02:14]} Qf6 {[%emt 0:05:49]} 5. Be3 {[%emt 0:00:46]} Bc5 {[%emt 0:01:18]} 6. c3 {[%emt 0:00:10]} Nge7 {[%emt 0:01:32]} 7. Bc4 {[%emt 0:00:53]} b6 {[%emt 0:03:54]} 8. O-O {[%emt 0:07:30]} Bb7 {[%emt 0:00:49]} 9. Nb5 {[%emt 0:35:04]} Rc8 {[%emt 0:05:28]} 10. Bxc5 {[%emt 0:13:28]} bxc5 {[%emt 0:00:32]} 11. Nd2 {[%emt 0:00:04]} O-O {[%emt 0:03:40]} 12. f4 {[%emt 0:05:42]} d6 {[%emt 0:03:42]} 13. Qe2 {[%emt 0:01:51]} a6 {[%emt 0:18:52]} 14. Na3 {[%emt 0:00:04]} Nb8 {[%emt 0:00:07]} 15. Rae1 {[%emt 0:00:38]} Ng6 {[%emt 0:04:45]} 16. Qf2 {[%emt 0:07:16]} Rce8 {[%emt 0:04:46]} 17. Bd3 {[%emt 0:01:25]} Qd8 {[%emt 0:01:41]} 18. Nac4 {[%emt 0:03:13]} Nd7 {[%emt 0:10:49]} 19. Ne3 {[%emt 0:00:12]} Nf6 {[%emt 0:01:16]} 20. Nf5 {[%emt 0:02:34]} Qa8 {[%emt 0:00:28]} 21. Ng3 {[%emt 0:04:21]} a5 {[%emt 0:02:28]} 22. h3 {[%emt 0:01:14]} a4 {[%emt 0:01:43]} 23. a3 {[%emt 0:02:27]} Bc6 {[%emt 0:01:32]} 24. Re2 {[%emt 0:00:53]} Qb7 {[%emt 0:00:58]} 25. Rb1 {[%emt 0:01:20]} Bb5 {[%emt 0:01:51]} 26. c4 {[%emt 0:02:06]} Bc6 {[%emt 0:00:10]} 27. b4 {[%emt 0:00:48]} axb3 {[%emt 0:00:06]} 28. Rxb3 {[%emt 0:00:04]} Qa8 {[%emt 0:00:15]} 29. Bb1 {[%emt 0:02:17]} Rb8 {[%emt 0:06:05]} 30. Rbe3 {[%emt 0:00:16]} Rfe8 {[%emt 0:00:25]} 31. Kh2 {[%emt 0:00:26]} Nd7 {[%emt 0:02:21]} 32. Nh5 {[%emt 0:02:23]} Ngf8 {[%emt 0:01:39]} 33. e5 {[%emt 0:00:43]} dxe5 {[%emt 0:02:19]} 34. fxe5 {[%emt 0:00:02]} Ng6 {[%emt 0:00:11]} 35. e6 {[%emt 0:00:29]} Rxe6 {[%emt 0:00:26]} 36. Rxe6 {[%emt 0:00:17]} fxe6 {[%emt 0:00:04]} 37. Bxg6 {[%emt 0:02:45]} hxg6 {[%emt 0:00:05]} 38. Nf4 {[%emt 0:00:04]} Nf8 {[%emt 0:02:44]} 39. Nxe6 {[%emt 0:00:47]} Nxe6 {[%emt 0:00:44]} 40. Rxe6 {[%emt 0:00:02]} Rf8 {[%emt 0:00:24]} 41. Qg3 {[%emt 0:01:26]} Be8 {[%emt 0:00:00]} 42. Ne4 {[%emt 0:00:00]} Bf7 {[%emt 0:00:00]} 43. Re7 {[%emt 0:00:00]} Re8 {[%emt 0:00:00]} 44. Qxc7 {[%emt 0:00:00]} Rxe7 {[%emt 0:00:00]} 45. Qxe7 {[%emt 0:00:00]} Bxc4 {[%emt 0:00:00]} 46. Nxc5 {[%emt 0:00:00]} Qb8+ {[%emt 0:00:00]} 47. Kg1 {[%emt 0:00:00]} Qb1+ {[%emt 0:00:00]} 48. Kh2 {[%emt 0:00:04]} Qb8+ {[%emt 0:00:00]} 49. Kg1 {[%emt 0:00:23]} 1/2-1/2

[Event "Ceske Budejovice Open-A 2019"]
[Site "Ceske Budejovice"]
[Date "2019.07.06"]
[Round "8.6"]
[White "Richterova, Natasa"]
[Black "Marsalek, Zdenek"]
[Result "1/2-1/2"]
[ECO "B31"]
[WhiteElo "2179"]
[BlackElo "2259"]
[Annotator "NA"]
[PlyCount "44"]
[EventDate "2019.07.02"]
[EventCountry "CZE"]
[SourceTitle "playchess.com"]
[Source "ChessBase"]
[SourceQuality "1"]
[TimeControl "5400+30"]

1. e4 {[%emt 0:00:00]} c5 {[%emt 0:00:22]} 2. Nf3 {[%emt 0:00:00]} Nc6 {[%emt 0:00:09]} 3. Bb5 {[%emt 0:00:06]} g6 {[%emt 0:00:20]} 4. Bxc6 {[%emt 0:01:40]} bxc6 {[%emt 0:00:13]} 5. d3 {[%emt 0:01:33]} Bg7 {[%emt 0:01:05]} 6. O-O {[%emt 0:00:33]} Nf6 {[%emt 0:00:19]} 7. Nc3 {[%emt 0:01:24]} O-O {[%emt 0:01:00]} 8. Be3 {[%emt 0:01:16]} d6 {[%emt 0:00:10]} 9. h3 {[%emt 0:00:05]} Rb8 {[%emt 0:01:53]} 10. Rb1 {[%emt 0:01:26]} e5 {[%emt 0:02:22]} 11. Qd2 {[%emt 0:02:54]} Rb7 {[%emt 0:02:43]} 12. Ne2 {[%emt 0:08:16]} c4 {[%emt 0:05:42]} 13. Rfd1 {[%emt 0:17:29]} Be6 {[%emt 0:07:52]} 14. Nc3 {[%emt 0:04:44]} cxd3 {[%emt 0:04:41]} 15. Qxd3 {[%emt 0:01:05]} Ne8 {[%emt 0:01:46]} 16. Ng5 {[%emt 0:02:27]} Qc8 {[%emt 0:12:04]} 17. Nxe6 {[%emt 0:10:56]} fxe6 {[%emt 0:00:31]} 18. Qa6 {[%emt 0:02:39]} Rff7 {[%emt 0:06:49]} 19. b3 {[%emt 0:02:41]} Bf8 {[%emt 0:01:26]} 20. Ne2 {[%emt 0:02:16]} d5 {[%emt 0:02:15]} 21. c3 {[%emt 0:06:51]} Nd6 {[%emt 0:04:06]} 22. Ng3 {[%emt 0:01:14]} Nb5 {[%emt 0:10:24]} 1/2-1/2

[Event "Ceske Budejovice Open-A 2019"]
[Site "Ceske Budejovice"]
[Date "2019.07.06"]
[Round "8.7"]
[White "Plischki, Sebastian"]
[Black "Placer, Sebastian"]
[Result "1/2-1/2"]
[ECO "D74"]
[WhiteElo "2420"]
[BlackElo "2040"]
[Annotator "NA"]
[PlyCount "110"]
[EventDate "2019.07.02"]
[EventCountry "CZE"]
[SourceTitle "playchess.com"]
[Source "ChessBase"]
[SourceQuality "1"]
[TimeControl "5400+30"]

1. d4 {[%emt 0:00:00]} Nf6 {[%emt 0:00:00]} 2. c4 {[%emt 0:00:00]} g6 {[%emt 0:00:00]} 3. g3 {[%emt 0:00:00]} Bg7 {[%emt 0:00:00]} 4. Bg2 {[%emt 0:00:00]} d5 {[%emt 0:00:07]} 5. cxd5 {[%emt 0:00:01]} Nxd5 {[%emt 0:00:05]} 6. Nf3 {[%emt 0:00:05]} O-O {[%emt 0:00:28]} 7. O-O {[%emt 0:00:12]} Nc6 {[%emt 0:00:19]} 8. Nc3 {[%emt 0:00:27]} Bf5 {[%emt 0:01:12]} 9. Ne1 {[%emt 0:12:43]} Nxc3 {[%emt 0:00:44]} 10. bxc3 {[%emt 0:01:13]} Qd7 {[%emt 0:00:36]} 11. Nd3 {[%emt 0:02:07]} Bxd3 {[%emt 0:03:59]} 12. Qxd3 {[%emt 0:00:37]} e5 {[%emt 0:01:38]} 13. e3 {[%emt 0:02:29]} Rfd8 {[%emt 0:01:14]} 14. Rb1 {[%emt 0:01:51]} Rab8 {[%emt 0:01:00]} 15. Qe2 {[%emt 0:05:15]} Kh8 {[%emt 0:05:10]} 16. Ba3 {[%emt 0:10:53]} f5 {[%emt 0:04:35]} 17. Kh1 {[%emt 0:11:42]} b5 {[%emt 0:15:37]} 18. Bc5 {[%emt 0:07:09]} Bf8 {[%emt 0:18:19]} 19. Bxf8 {[%emt 0:00:33]} Rxf8 {[%emt 0:00:02]} 20. Rfd1 {[%emt 0:02:33]} Qe8 {[%emt 0:14:37]} 21. c4 {[%emt 0:08:24]} b4 {[%emt 0:01:05]} 22. c5 {[%emt 0:03:39]} exd4 {[%emt 0:08:34]} 23. Qb2 {[%emt 0:00:56]} Qe6 {[%emt 0:04:42]} 24. exd4 {[%emt 0:01:34]} Qf6 {[%emt 0:01:19]} 25. d5 {[%emt 0:05:35]} Qxb2 {[%emt 0:01:41]} 26. Rxb2 {[%emt 0:00:07]} Ne5 {[%emt 0:00:14]} 27. Re2 {[%emt 0:00:38]} Nd7 {[%emt 0:01:24]} 28. Re7 {[%emt 0:03:12]} Nxc5 {[%emt 0:01:32]} 29. Rxc7 {[%emt 0:00:16]} Na4 {[%emt 0:02:50]} 30. Rxa7 {[%emt 0:02:19]} Nc3 {[%emt 0:00:04]} 31. Re1 {[%emt 0:00:36]} Ra8 {[%emt 0:06:57]} 32. Rb7 {[%emt 0:02:47]} Rab8 {[%emt 0:01:35]} 33. Ree7 {[%emt 0:01:32]} Rxb7 {[%emt 0:00:12]} 34. Rxb7 {[%emt 0:00:06]} Nxa2 {[%emt 0:00:22]} 35. d6 {[%emt 0:00:46]} Rd8 {[%emt 0:02:02]} 36. d7 {[%emt 0:01:13]} Kg7 {[%emt 0:00:36]} 37. Bd5 {[%emt 0:02:40]} Nc3 {[%emt 0:00:14]} 38. Bc6 {[%emt 0:00:06]} Ne4 {[%emt 0:03:03]} 39. Kg2 {[%emt 0:01:51]} Kf7 {[%emt 0:00:38]} 40. Rxb4 {[%emt 0:00:39]} Nc5 {[%emt 0:00:30]} 41. Kf3 {[%emt 0:06:03]} Nd3 {[%emt 0:00:00]} 42. Rb5 {[%emt 0:00:00]} Ke6 {[%emt 0:00:00]} 43. Bd5+ {[%emt 0:00:00]} Kd6 {[%emt 0:00:00]} 44. Ba2 {[%emt 0:00:00]} Rxd7 {[%emt 0:00:00]} 45. Rd5+ {[%emt 0:00:00]} Ke7 {[%emt 0:00:00]} 46. Rxd7+ {[%emt 0:00:00]} Kxd7 {[%emt 0:00:00]} 47. Ke3 {[%emt 0:00:00]} Ne5 {[%emt 0:00:00]} 48. Kf4 {[%emt 0:00:00]} Nd3+ {[%emt 0:00:00]} 49. Kg5 {[%emt 0:00:00]} Nxf2 {[%emt 0:00:00]} 50. h4 {[%emt 0:00:00]} Ne4+ {[%emt 0:00:00]} 51. Kf4 {[%emt 0:00:00]} Ke7 {[%emt 0:02:13]} 52. g4 {[%emt 0:00:00]} Kf6 {[%emt 0:00:24]} 53. g5+ {[%emt 0:00:00]} Kg7 {[%emt 0:00:12]} 54. h5 {[%emt 0:00:00]} Nxg5 {[%emt 0:00:29]} 55. Kxg5 {[%emt 0:00:00]} gxh5 {[%emt 0:00:04]} 1/2-1/2

[Event "Ceske Budejovice Open-A 2019"]
[Site "Ceske Budejovice"]
[Date "2019.07.06"]
[Round "8.8"]
[White "Nagy, Ladislav"]
[Black "Muron, Miroslav"]
[Result "1/2-1/2"]
[ECO "C24"]
[WhiteElo "2061"]
[BlackElo "2215"]
[Annotator "NA"]
[PlyCount "69"]
[EventDate "2019.07.02"]
[EventCountry "CZE"]
[SourceTitle "playchess.com"]
[Source "ChessBase"]
[SourceQuality "1"]
[TimeControl "5400+30"]

1. e4 {[%emt 0:00:00]} e5 {[%emt 0:00:00]} 2. Bc4 {[%emt 0:00:17]} Nf6 {[%emt 0:00:00]} 3. d3 {[%emt 0:00:45]} Nc6 {[%emt 0:01:03]} 4. Nc3 {[%emt 0:00:57]} Na5 {[%emt 0:02:21]} 5. Nge2 {[%emt 0:02:03]} Nxc4 {[%emt 0:07:02]} 6. dxc4 {[%emt 0:00:14]} Bc5 {[%emt 0:02:42]} 7. O-O {[%emt 0:03:12]} h6 {[%emt 0:00:31]} 8. Qd3 {[%emt 0:04:17]} d6 {[%emt 0:09:21]} 9. a3 {[%emt 0:07:16]} a5 {[%emt 0:00:34]} 10. b3 {[%emt 0:06:30]} O-O {[%emt 0:06:49]} 11. Bb2 {[%emt 0:03:36]} Nh5 {[%emt 0:07:40]} 12. Na4 {[%emt 0:22:28]} Ba7 {[%emt 0:02:42]} 13. c5 {[%emt 0:03:14]} Qe7 {[%emt 0:17:40]} 14. cxd6 {[%emt 0:04:21]} cxd6 {[%emt 0:01:13]} 15. Nac3 {[%emt 0:06:31]} Rd8 {[%emt 0:01:29]} 16. Nd5 {[%emt 0:02:12]} Qg5 {[%emt 0:00:52]} 17. Bc1 {[%emt 0:01:58]} Qh4 {[%emt 0:01:01]} 18. Be3 {[%emt 0:02:52]} Bxe3 {[%emt 0:01:32]} 19. Qxe3 {[%emt 0:01:29]} Be6 {[%emt 0:02:00]} 20. c4 {[%emt 0:05:30]} Bxd5 {[%emt 0:04:08]} 21. cxd5 {[%emt 0:00:50]} Rac8 {[%emt 0:00:55]} 22. Rac1 {[%emt 0:00:32]} f5 {[%emt 0:00:29]} 23. f3 {[%emt 0:08:29]} fxe4 {[%emt 0:00:17]} 24. fxe4 {[%emt 0:00:48]} Nf6 {[%emt 0:04:34]} 25. Nc3 {[%emt 0:05:02]} a4 {[%emt 0:05:24]} 26. Nxa4 {[%emt 0:00:51]} Nxe4 {[%emt 0:01:26]} 27. Nb6 {[%emt 0:01:21]} Rxc1 {[%emt 0:02:07]} 28. Rxc1 {[%emt 0:00:08]} Nf6 {[%emt 0:01:57]} 29. h3 {[%emt 0:01:04]} Qh5 {[%emt 0:00:27]} 30. a4 {[%emt 0:01:16]} e4 {[%emt 0:01:01]} 31. Re1 {[%emt 0:01:35]} Nxd5 {[%emt 0:05:14]} 32. Nxd5 {[%emt 0:00:20]} Qxd5 {[%emt 0:00:01]} 33. Qxe4 {[%emt 0:00:35]} Qxb3 {[%emt 0:00:03]} 34. Rb1 {[%emt 0:00:40]} Qa2 {[%emt 0:02:03]} 35. Rxb7 {[%emt 0:00:55]} 1/2-1/2

[Event "Ceske Budejovice Open-A 2019"]
[Site "Ceske Budejovice"]
[Date "2019.07.06"]
[Round "8.9"]
[White "Rolinek, Dominik"]
[Black "Mulenko, Alexander"]
[Result "1/2-1/2"]
[ECO "A45"]
[WhiteElo "2004"]
[BlackElo "2055"]
[Annotator "NA"]
[PlyCount "95"]
[EventDate "2019.07.02"]
[EventCountry "CZE"]
[SourceTitle "playchess.com"]
[Source "ChessBase"]
[SourceQuality "1"]
[TimeControl "5400+30"]

1. d4 {[%emt 0:00:00]} Nf6 {[%emt 0:00:00]} 2. Bf4 {[%emt 0:00:09]} e6 {[%emt 0:00:51]} 3. Nf3 {[%emt 0:00:06]} b6 {[%emt 0:00:15]} 4. e3 {[%emt 0:00:06]} Bb7 {[%emt 0:00:10]} 5. Bd3 {[%emt 0:00:07]} Bd6 {[%emt 0:03:41]} 6. Bg3 {[%emt 0:00:15]} Bxg3 {[%emt 0:01:00]} 7. hxg3 {[%emt 0:00:10]} d6 {[%emt 0:01:13]} 8. Nbd2 {[%emt 0:00:08]} Nbd7 {[%emt 0:00:29]} 9. c3 {[%emt 0:00:22]} Qe7 {[%emt 0:00:36]} 10. Qc2 {[%emt 0:02:41]} O-O-O {[%emt 0:01:16]} 11. Qa4 {[%emt 0:02:49]} Kb8 {[%emt 0:01:02]} 12. Ba6 {[%emt 0:04:04]} Ba8 {[%emt 0:05:24]} 13. O-O-O {[%emt 0:00:26]} e5 {[%emt 0:04:24]} 14. Nb3 {[%emt 0:07:02]} e4 {[%emt 0:04:07]} 15. Ne1 {[%emt 0:02:31]} c6 {[%emt 0:06:06]} 16. Nc2 {[%emt 0:02:46]} Nd5 {[%emt 0:02:47]} 17. Nb4 {[%emt 0:01:37]} Nxb4 {[%emt 0:02:14]} 18. Qxb4 {[%emt 0:00:23]} Kc7 {[%emt 0:05:13]} 19. Kb1 {[%emt 0:05:45]} c5 {[%emt 0:04:55]} 20. Qa3 {[%emt 0:02:17]} Bb7 {[%emt 0:04:53]} 21. Nd2 {[%emt 0:08:56]} Bxa6 {[%emt 0:03:13]} 22. Qxa6 {[%emt 0:00:07]} Kb8 {[%emt 0:00:16]} 23. Nc4 {[%emt 0:01:22]} d5 {[%emt 0:04:49]} 24. Na3 {[%emt 0:01:24]} cxd4 {[%emt 0:04:00]} 25. cxd4 {[%emt 0:00:45]} Nf6 {[%emt 0:01:43]} 26. Rc1 {[%emt 0:01:20]} Qb7 {[%emt 0:00:39]} 27. Qe2 {[%emt 0:00:42]} Rc8 {[%emt 0:00:33]} 28. Nb5 {[%emt 0:01:58]} Qa6 {[%emt 0:01:55]} 29. Rhe1 {[%emt 0:02:27]} Rhd8 {[%emt 0:01:26]} 30. f3 {[%emt 0:02:09]} Rxc1+ {[%emt 0:02:58]} 31. Rxc1 {[%emt 0:00:09]} Rc8 {[%emt 0:01:30]} 32. Rxc8+ {[%emt 0:01:51]} Qxc8 {[%emt 0:00:11]} 33. Qc2 {[%emt 0:00:08]} Qd7 {[%emt 0:02:37]} 34. Nc3 {[%emt 0:00:09]} exf3 {[%emt 0:01:03]} 35. gxf3 {[%emt 0:00:15]} Qh3 {[%emt 0:01:16]} 36. Qf2 {[%emt 0:00:09]} h5 {[%emt 0:01:08]} 37. Kc2 {[%emt 0:01:12]} Qf5+ {[%emt 0:00:48]} 38. Kd2 {[%emt 0:00:52]} g5 {[%emt 0:01:18]} 39. Qg2 {[%emt 0:02:48]} g4 {[%emt 0:04:03]} 40. fxg4 {[%emt 0:01:32]} hxg4 {[%emt 0:00:17]} 41. Ke1 {[%emt 0:02:18]} Kc7 {[%emt 0:02:01]} 42. Qf2 {[%emt 0:00:15]} Qxf2+ {[%emt 0:01:04]} 43. Kxf2 {[%emt 0:00:06]} Kc6 {[%emt 0:00:49]} 44. Ke1 {[%emt 0:01:08]} Nh5 {[%emt 0:00:54]} 45. Ne2 {[%emt 0:00:17]} f5 {[%emt 0:00:21]} 46. Kd2 {[%emt 0:00:29]} Nf6 {[%emt 0:00:21]} 47. Nc3 {[%emt 0:00:27]} a5 {[%emt 0:00:46]} 48. a4 {[%emt 0:00:35]} 1/2-1/2

[Event "Ceske Budejovice Open-A 2019"]
[Site "Ceske Budejovice"]
[Date "2019.07.06"]
[Round "8.10"]
[White "Steiner, Bruno"]
[Black "Nejdl, Eduard"]
[Result "1-0"]
[ECO "A04"]
[WhiteElo "2179"]
[BlackElo "1995"]
[Annotator "NA"]
[PlyCount "77"]
[EventDate "2019.07.02"]
[EventCountry "CZE"]
[SourceTitle "playchess.com"]
[Source "ChessBase"]
[SourceQuality "1"]
[TimeControl "5400+30"]

1. Nf3 {[%emt 0:00:04]} f5 {[%emt 0:00:00]} 2. d3 {[%emt 0:00:56]} d5 {[%emt 0:00:15]} 3. c4 {[%emt 0:00:37]} e6 {[%emt 0:00:25]} 4. Bg5 {[%emt 0:13:09]} Nf6 {[%emt 0:00:30]} 5. cxd5 {[%emt 0:00:19]} exd5 {[%emt 0:00:11]} 6. Nc3 {[%emt 0:00:05]} c6 {[%emt 0:01:01]} 7. d4 {[%emt 0:04:41]} Be7 {[%emt 0:03:51]} 8. e3 {[%emt 0:00:31]} O-O {[%emt 0:00:25]} 9. Bd3 {[%emt 0:00:10]} Ne4 {[%emt 0:02:41]} 10. Bxe7 {[%emt 0:00:34]} Qxe7 {[%emt 0:00:03]} 11. O-O {[%emt 0:00:16]} Be6 {[%emt 0:04:24]} 12. Ne5 {[%emt 0:02:35]} Nd7 {[%emt 0:03:23]} 13. f4 {[%emt 0:02:59]} Rf6 {[%emt 0:02:24]} 14. Qe2 {[%emt 0:09:08]} Rh6 {[%emt 0:03:03]} 15. Bxe4 {[%emt 0:13:24]} fxe4 {[%emt 0:04:40]} 16. f5 {[%emt 0:06:53]} Bf7 {[%emt 0:04:51]} 17. Nxd7 {[%emt 0:09:20]} Qxd7 {[%emt 0:00:02]} 18. Rf4 {[%emt 0:00:24]} Qe7 {[%emt 0:01:35]} 19. Raf1 {[%emt 0:00:38]} Rf8 {[%emt 0:01:29]} 20. g3 {[%emt 0:03:37]} Qg5 {[%emt 0:02:02]} 21. Qg2 {[%emt 0:00:16]} Rd6 {[%emt 0:02:26]} 22. Nd1 {[%emt 0:01:54]} Bh5 {[%emt 0:01:38]} 23. h4 {[%emt 0:01:02]} Qd8 {[%emt 0:01:02]} 24. g4 {[%emt 0:00:09]} Be8 {[%emt 0:00:30]} 25. Qg3 {[%emt 0:01:36]} Rd7 {[%emt 0:03:49]} 26. Nf2 {[%emt 0:01:05]} Qb6 {[%emt 0:02:07]} 27. Nh3 {[%emt 0:05:20]} Qxb2 {[%emt 0:02:20]} 28. Ng5 {[%emt 0:00:21]} Bf7 {[%emt 0:00:06]} 29. Ne6 {[%emt 0:03:40]} Re8 {[%emt 0:01:59]} 30. R4f2 {[%emt 0:03:07]} Qa3 {[%emt 0:01:30]} 31. Qe5 {[%emt 0:02:54]} Bxe6 {[%emt 0:02:15]} 32. fxe6 {[%emt 0:00:16]} Rde7 {[%emt 0:00:20]} 33. Rf8+ {[%emt 0:02:18]} Rxf8 {[%emt 0:00:56]} 34. Rxf8+ {[%emt 0:00:04]} Kxf8 {[%emt 0:00:26]} 35. Qf4+ {[%emt 0:00:04]} Kg8 {[%emt 0:00:42]} 36. Qb8+ {[%emt 0:00:06]} Re8 {[%emt 0:00:30]} 37. Qxe8+ {[%emt 0:00:08]} Qf8 {[%emt 0:00:06]} 38. Qd7 {[%emt 0:00:25]} Qf3 {[%emt 0:01:04]} 39. Qd8+ 1-0

[Event "Ceske Budejovice Open-A 2019"]
[Site "Ceske Budejovice"]
[Date "2019.07.06"]
[Round "8.11"]
[White "Schmid, Thomas"]
[Black "Brom, Jiri"]
[Result "1/2-1/2"]
[ECO "B31"]
[WhiteElo "2201"]
[BlackElo "2018"]
[Annotator "NA"]
[PlyCount "38"]
[EventDate "2019.07.02"]
[EventCountry "CZE"]
[SourceTitle "playchess.com"]
[Source "ChessBase"]
[SourceQuality "1"]
[TimeControl "5400+30"]

1. e4 {[%emt 0:00:00]} c5 {[%emt 0:00:00]} 2. Nf3 {[%emt 0:00:00]} Nc6 {[%emt 0:00:00]} 3. Bb5 {[%emt 0:00:00]} g6 {[%emt 0:00:28]} 4. Bxc6 {[%emt 0:00:00]} bxc6 {[%emt 0:00:14]} 5. O-O {[%emt 0:00:00]} Bg7 {[%emt 0:00:26]} 6. Re1 {[%emt 0:00:16]} Nf6 {[%emt 0:01:13]} 7. c3 {[%emt 0:03:46]} O-O {[%emt 0:01:06]} 8. d4 {[%emt 0:00:10]} cxd4 {[%emt 0:03:54]} 9. cxd4 {[%emt 0:00:34]} d6 {[%emt 0:00:40]} 10. Nc3 {[%emt 0:02:08]} Rb8 {[%emt 0:01:58]} 11. Rb1 {[%emt 0:03:48]} a5 {[%emt 0:04:10]} 12. Bg5 {[%emt 0:05:15]} h6 {[%emt 0:04:36]} 13. Bf4 {[%emt 0:06:03]} Nh5 {[%emt 0:17:28]} 14. Bd2 {[%emt 0:04:50]} Nf6 {[%emt 0:05:45]} 15. h3 {[%emt 0:12:45]} Nd7 {[%emt 0:01:03]} 16. Na4 {[%emt 0:04:13]} Ba6 {[%emt 0:02:47]} 17. b3 {[%emt 0:04:39]} Bb5 {[%emt 0:01:34]} 18. Nb2 {[%emt 0:01:39]} c5 {[%emt 0:00:23]} 19. d5 {[%emt 0:01:24]} Qc7 {[%emt 0:03:46]} 1/2-1/2

[Event "Ceske Budejovice Open-A 2019"]
[Site "Ceske Budejovice"]
[Date "2019.07.06"]
[Round "8.12"]
[White "Lys, Josef"]
[Black "Barak, David"]
[Result "0-1"]
[ECO "A45"]
[WhiteElo "2149"]
[BlackElo "2015"]
[Annotator "NA"]
[PlyCount "50"]
[EventDate "2019.07.02"]
[EventCountry "CZE"]
[SourceTitle "playchess.com"]
[Source "ChessBase"]
[SourceQuality "1"]
[TimeControl "5400+30"]

1. d4 {[%emt 0:00:00]} Nf6 {[%emt 0:00:00]} 2. Bg5 {[%emt 0:00:00]} Ne4 {[%emt 0:00:00]} 3. Bf4 {[%emt 0:00:00]} d5 {[%emt 0:00:04]} 4. f3 {[%emt 0:00:35]} Nf6 {[%emt 0:00:05]} 5. c3 {[%emt 0:02:39]} e6 {[%emt 0:05:21]} 6. Nd2 {[%emt 0:01:09]} c5 {[%emt 0:21:47]} 7. e3 {[%emt 0:05:24]} Nc6 {[%emt 0:01:00]} 8. g4 {[%emt 0:00:48]} Bd6 {[%emt 0:02:52]} 9. Bxd6 {[%emt 0:02:25]} Qxd6 {[%emt 0:00:10]} 10. Bb5 {[%emt 0:02:12]} Bd7 {[%emt 0:10:05]} 11. g5 {[%emt 0:08:56]} Ng8 {[%emt 0:03:57]} 12. Ne2 h6 {[%emt 0:06:41]} 13. g6 {[%emt 0:19:05]} fxg6 {[%emt 0:08:15]} 14. Qc2 {[%emt 0:00:43]} Nge7 {[%emt 0:04:03]} 15. Nf4 {[%emt 0:15:51]} cxd4 {[%emt 0:08:32]} 16. Nxg6 {[%emt 0:01:17]} dxe3 {[%emt 0:01:48]} 17. Nxh8 {[%emt 0:00:23]} exd2+ {[%emt 0:00:10]} 18. Kd1 {[%emt 0:01:50]} Ne5 {[%emt 0:06:00]} 19. Be2 {[%emt 0:14:03]} d4 {[%emt 0:10:11]} 20. cxd4 {[%emt 0:15:17]} Qxd4 {[%emt 0:00:44]} 21. a4 {[%emt 0:00:28]} Nf5 {[%emt 0:02:54]} 22. Ra3 {[%emt 0:00:34]} Ne3+ {[%emt 0:03:18]} 23. Rxe3 {[%emt 0:00:11]} Qxe3 {[%emt 0:00:03]} 24. Qxd2 {[%emt 0:03:02]} Bxa4+ {[%emt 0:00:19]} 25. Ke1 {[%emt 0:00:08]} Nxf3+ {[%emt 0:00:23]} 0-1

[Event "Ceske Budejovice Open-A 2019"]
[Site "Ceske Budejovice"]
[Date "2019.07.06"]
[Round "8.13"]
[White "Sykora, Ondrej"]
[Black "Vahala, Tomas"]
[Result "1-0"]
[ECO "B06"]
[WhiteElo "2065"]
[BlackElo "1774"]
[Annotator "NA"]
[PlyCount "105"]
[EventDate "2019.07.02"]
[EventCountry "CZE"]
[SourceTitle "playchess.com"]
[Source "ChessBase"]
[SourceQuality "1"]
[TimeControl "5400+30"]

1. e4 {[%emt 0:00:00]} g6 {[%emt 0:00:00]} 2. d4 {[%emt 0:00:37]} Bg7 {[%emt 0:00:00]} 3. Nc3 {[%emt 0:00:07]} c6 {[%emt 0:00:14]} 4. Be3 {[%emt 0:01:57]} d6 {[%emt 0:00:44]} 5. Nf3 {[%emt 0:02:18]} Nf6 {[%emt 0:04:10]} 6. h3 {[%emt 0:00:59]} O-O {[%emt 0:04:25]} 7. Bd3 {[%emt 0:01:59]} Nbd7 {[%emt 0:03:01]} 8. O-O {[%emt 0:00:24]} e5 {[%emt 0:02:27]} 9. Qd2 {[%emt 0:02:12]} Qc7 {[%emt 0:03:25]} 10. Bh6 {[%emt 0:00:40]} Re8 {[%emt 0:02:15]} 11. Bxg7 {[%emt 0:00:08]} Kxg7 {[%emt 0:00:06]} 12. Rfe1 {[%emt 0:01:06]} Nf8 {[%emt 0:01:35]} 13. Bf1 {[%emt 0:01:44]} b6 {[%emt 0:06:25]} 14. Rad1 {[%emt 0:01:46]} Bb7 {[%emt 0:06:01]} 15. dxe5 {[%emt 0:05:24]} dxe5 {[%emt 0:00:02]} 16. Nh4 {[%emt 0:01:01]} Kh8 {[%emt 0:08:23]} 17. Qe3 {[%emt 0:07:53]} Ne6 {[%emt 0:05:29]} 18. Nf3 {[%emt 0:02:02]} Rad8 {[%emt 0:02:19]} 19. Rxd8 {[%emt 0:03:10]} Rxd8 {[%emt 0:00:03]} 20. Rd1 {[%emt 0:01:02]} Rxd1 {[%emt 0:03:13]} 21. Nxd1 {[%emt 0:00:10]} Kg7 {[%emt 0:07:42]} 22. Nd2 {[%emt 0:00:52]} Nd7 {[%emt 0:05:36]} 23. f3 {[%emt 0:01:02]} a6 {[%emt 0:02:40]} 24. Nf2 {[%emt 0:01:54]} b5 {[%emt 0:05:42]} 25. Ng4 {[%emt 0:04:23]} c5 {[%emt 0:05:38]} 26. c4 {[%emt 0:02:32]} Bc6 {[%emt 0:01:17]} 27. Qh6+ {[%emt 0:01:09]} Kg8 {[%emt 0:00:02]} 28. Ne3 {[%emt 0:00:25]} Nd4 {[%emt 0:04:18]} 29. Ng4 {[%emt 0:11:06]} Ne6 {[%emt 0:00:41]} 30. Qe3 {[%emt 0:00:42]} b4 {[%emt 0:00:51]} 31. Bd3 {[%emt 0:01:48]} a5 {[%emt 0:01:06]} 32. Bb1 {[%emt 0:00:15]} a4 {[%emt 0:00:39]} 33. Qd3 {[%emt 0:01:20]} Nd4 {[%emt 0:00:44]} 34. Ne3 {[%emt 0:00:15]} Qd6 {[%emt 0:03:46]} 35. Nd5 {[%emt 0:00:19]} Kg7 {[%emt 0:00:47]} 36. Nf1 {[%emt 0:01:01]} Kg8 {[%emt 0:02:56]} 37. Nfe3 {[%emt 0:00:43]} Kf8 {[%emt 0:01:29]} 38. Bc2 {[%emt 0:00:37]} Kg8 {[%emt 0:00:56]} 39. Bd1 {[%emt 0:00:08]} Kg7 {[%emt 0:00:39]} 40. Kh2 {[%emt 0:02:06]} Kg8 {[%emt 0:03:55]} 41. g3 {[%emt 0:03:14]} Kg7 {[%emt 0:03:58]} 42. Kg2 {[%emt 0:01:11]} f6 {[%emt 0:00:00]} 43. Qd2 {[%emt 0:00:00]} h6 {[%emt 0:00:00]} 44. Ng4 {[%emt 0:00:00]} g5 {[%emt 0:00:00]} 45. Nge3 {[%emt 0:00:00]} Kg6 {[%emt 0:00:00]} 46. Qd3 {[%emt 0:00:00]} Kg7 {[%emt 0:00:00]} 47. Qxd4 {[%emt 0:00:00]} exd4 {[%emt 0:00:00]} 48. Nf5+ {[%emt 0:00:00]} Kf8 {[%emt 0:00:00]} 49. Nxd6 {[%emt 0:00:00]} Ne5 {[%emt 0:00:00]} 50. Nb6 {[%emt 0:00:00]} Nd3 {[%emt 0:00:00]} 51. Bxa4 {[%emt 0:00:00]} Nxb2 {[%emt 0:00:00]} 52. Bb3 {[%emt 0:00:00]} d3 {[%emt 0:00:00]} 53. Kf2 {[%emt 0:00:00]} 1-0